Cogmind - Beta 10.2 @@@ ROGUE MODE // 2021.10.23 @ 22:08:44 Player: Peace Result: Destroyed by L-31 Rogue with Katana Performance ------------- Evolutions (2) 1000 Regions Visited (4) 800 Robots Destroyed (4) 20 Value Destroyed (77) 77 Prototype IDs (1) 20 Alien Tech Used (0) 0 Bonus (630) 630 TOTAL SCORE: 2547 Bonus ------- Pacifist 470 Follower Combat Kills 160 Cogmind --------- Core Integrity 0/550 Matter 0/300 Energy 93/100 System Corruption 0% Temperature Cool (0) Movement Core (50) Location -8/Materials Parts ------- > --- POWER (1) -------- (None) > --- PROPULSION (2) --- (None) > --- UTILITY (6) ------ Visual Processing Unit Seismic Analyzer System Shield > --- WEAPON (2) ------- (None) > --- INVENTORY (4) ---- Light Treads ECM Suite Thief Drone Bay (0/3) Grenade Launcher Peak State ------------ > --- POWER ------------ Improved Ion Engine > --- PROPULSION ------- Flight Unit Flight Unit > --- UTILITY ---------- Visual Processing Unit Seismic Analyzer Thief Drone Bay > --- WEAPON ----------- (None) > --- INVENTORY -------- Light Treads Heavy Assault Rifle Grenade Launcher [Rating: 14] Favorites ----------- Power Improved Ion Engine Engine Improved Ion Engine Power Core Light Nuclear Core Propulsion Flight Unit Flight Unit Flight Unit Utility Seismic Analyzer Device Thief Drone Bay Processor Seismic Analyzer Hackware System Shield Weapon Grenade Launcher Launcher Grenade Launcher Build | -11 -10 -10 -9 -8 ------- Run | Scr Mat Min Mat Mat Slots Evolved 4 | . . . 2 2 Power . | . . . . . Propulsion . | . . . . . Utility 4 | . . . 2 2 Weapon . | . . . . . Parts Attached 11 | . 1 4 3 3 Power 2 | . . 1 1 . Engine 1 | . . . 1 . Core 1 | . . 1 . . Reactor . | . . . . . Propulsion 2 | . . 2 . . Treads . | . . . . . Leg . | . . . . . Wheel . | . . . . . Hover . | . . . . . Flight 2 | . . 2 . . Utility 4 | . 1 1 1 1 Device 1 | . . 1 . . Storage . | . . . . . Processor 2 | . 1 . 1 . Hackware 1 | . . . . 1 Protection . | . . . . . Artifact . | . . . . . Weapon 3 | . . . 1 2 Energy Gun . | . . . . . Energy Cannon . | . . . . . Ballistic Gun . | . . . . . Ballistic Cannon . | . . . . . Launcher 3 | . . . 1 2 Special Weapon . | . . . . . Impact Weapon . | . . . . . Slashing Weapon . | . . . . . Piercing Weapon . | . . . . . Special Melee Weapon . | . . . . . Unidentified Prototypes 1 | . . 1 . . Parts Lost 2 | . . . 2 . Power . | . . . . . Propulsion 2 | . . . 2 . Utility . | . . . . . Weapon . | . . . . . Highest Loss Streak 2 | . . . 2 . Average Slot Usage (%) 38 | . 12 37 56 30 Engine 3 | . . . 8 4 Flight 9 | . . 11 19 . Device 5 | . . 11 2 . Processor 16 | . 12 14 21 18 Hackware 1 | . . . . 5 Launcher 1 | . . . 4 2 Naked Turns 12 | . 12 . . . Heaviest Build 10 | . . 4 10 10 Greatest Support 8 | 3 3 8 8 3 Greatest Overweight (x) 3 | . . 1 3 3 Average Overweight (x) . | . . . . . Largest Inventory Capacity 4 | 4 4 4 4 4 Average Capacity 4 | 4 4 4 4 4 Most Carried 4 | . . 4 4 4 Average Carried 2 | . . 2 3 3 Final Capacity 4 | 4 4 4 4 4 Final Carried 4 | . . 4 3 4 Class Distribution -------------------- 100% | Mutant Dominant Class ---------------- Mutant | -10/Materials Mutant | -10/Mines Mutant | -9/Materials Mutant | -8/Materials Resources | -11 -10 -10 -9 -8 ----------- Run | Scr Mat Min Mat Mat Matter Collected 267 | 162 . 85 20 . Remotely . | . . . . . Salvage Created 67 | . . . . 67 Parts 2 | . . . . 2 Haulers Intercepted . | . . . . . Recyclers Shooed . | . . . . . Parts Field Recycled . | . . . . . Retrieved Matter . | . . . . . Parts Self-Destructed . | . . . . . Prevented . | . . . . . Kills | -11 -10 -10 -9 -8 ------- Run | Scr Mat Min Mat Mat Combat Hostiles Destroyed 4 | . . . . 4 AOE 4 | . . . . 4 Classes Destroyed 2 | . . . . 2 Swarmer 3 | . . . . 3 Grunt 1 | . . . . 1 Best Kill Streak 3 | . . . . 3 Combat Bots Only 3 | . . . . 3 Max Kills in Single Turn 3 | . . . . 3 Gunslinging . | . . . . . Exploded 3 | . . . . 3 Melee . | . . . . . Uniques/NPCs Destroyed . | . . . . . Combat | -11 -10 -10 -9 -8 -------- Run | Scr Mat Min Mat Mat Damage Taken 806 | . 50 . 120 636 Core 648 | . 50 . 24 574 Absorbed by Shields . | . . . . . Core Remaining (%) 91 | 100 . 80 94 . Volleys Fired 27 | . . . 22 5 Largest 1 | . . . 1 1 Hottest 30 | . . . 30 30 Shots Fired 27 | . . . 22 5 Gun . | . . . . . Cannon . | . . . . . Launcher 27 | . . . 22 5 Special . | . . . . . Kinetic . | . . . . . Thermal . | . . . . . Explosive 27 | . . . 22 5 Electromagnetic . | . . . . . Robot Hit Streak 1 | . . . . 1 Robot Miss Streak . | . . . . . Penetration Max . | . . . . . Secondary Targets . | . . . . . Shots Hit Robots 1 | . . . . 1 Core Hits 12 | . . 1 . 11 Critical Hits . | . . . . . Critical Kills . | . . . . . Critical Parts Destroyed . | . . . . . Melee Attacks . | . . . . . Impact . | . . . . . Slashing . | . . . . . Piercing . | . . . . . Sneak Attacks . | . . . . . Combat Hostiles . | . . . . . Follow-up Attacks . | . . . . . Damage Inflicted 484 | . . 1 . 483 Guns . | . . . . . Cannons . | . . . . . Explosions 483 | . . . . 483 Melee . | . . . . . Ramming 1 | . . 1 . . Kinetic . | . . . . . Thermal . | . . . . . Explosive 483 | . . . . 483 Electromagnetic . | . . . . . Impact . | . . . . . Slashing . | . . . . . Piercing . | . . . . . Highest Corruption 1 | . . . 1 . Average Corruption 1 | . . . 1 . Corruption Purged . | . . . . . Overload Shots . | . . . . . Overflow Damage 8 | . . . . 8 Projectiles . | . . . . . Explosions 8 | . . . . 8 Melee . | . . . . . Knockbacks . | . . . . . Impact . | . . . . . Kinetic . | . . . . . Secondary . | . . . . . Self-Inflicted Damage 46 | . . . 46 . Shots 2 | . . . 2 . Rammed 1 | . . 1 . . Targets Rammed 1 | . . 1 . . Kicked . | . . . . . Crushed . | . . . . . Highest Temperature . | . . . . . Average Temperature . | . . . . . Received Heat Transfer 189 | . . . 9 180 Siege Activations . | . . . . . Robots Corrupted . | . . . . . Combat Hostiles . | . . . . . Parts Fried . | . . . . . Impact Corruptions . | . . . . . Robots Melted . | . . . . . Combat Hostiles . | . . . . . Parts Melted . | . . . . . Heat Transferred . | . . . . . Parts Sabotaged . | . . . . . Parts Stolen . | . . . . . Parts Stripped . | . . . . . Power Chain Reactions . | . . . . . Missiles Intercepted . | . . . . . Alert | -11 -10 -10 -9 -8 ------- Run | Scr Mat Min Mat Mat Peak Influence 257 | . 19 237 149 257 Initial 92 | . . 7 92 60 Average 100 | . 9 99 138 105 Maximum Alert Level 1 | . . 1 . 1 Low Security (%) 85 | 100 100 73 100 84 Level 1 14 | . . 26 . 15 Level 2 . | . . . . . Level 3 . | . . . . . Level 4 . | . . . . . Level 5 . | . . . . . High Security . | . . . . . Max Security . | . . . . . Squads Dispatched 5 | . 1 . 1 3 Investigation 1 | . 1 . . . Extermination . | . . . . . Reinforcement 3 | . . . 1 2 Assault . | . . . . . Garrison 1 | . . . . 1 Intercept . | . . . . . Construction Impeded 1 | . . . . 1 Haulers Reinforced . | . . . . . Stealth | -11 -10 -10 -9 -8 --------- Run | Scr Mat Min Mat Mat Distress Signals 1 | . . . . 1 Communications Jammed . | . . . . . Distress Signals . | . . . . . Times Spotted 35 | . 5 8 3 19 Peak Tracking Total 18 | . 5 5 1 18 Tactical Retreats 2 | . . 1 . 1 Traps | -11 -10 -10 -9 -8 ------- Run | Scr Mat Min Mat Mat Traps Triggered 1 | . 1 . . . Indirectly . | . . . . . Trap Hack Attempts . | . . . . . Triggered . | . . . . . Disarmed . | . . . . . Reprogrammed . | . . . . . Reused . | . . . . . Traps Extracted . | . . . . . Installed . | . . . . . Triggered . | . . . . . Machines | -11 -10 -10 -9 -8 ---------- Run | Scr Mat Min Mat Mat Machines Disabled . | . . . . . Max in Single Turn . | . . . . . Machines Sabotaged . | . . . . . Garrisons Compromised . | . . . . . Overloaded Fab Kills . | . . . . . Fab Network Shutdowns . | . . . . . Hacking | -11 -10 -10 -9 -8 --------- Run | Scr Mat Min Mat Mat Machines Accessed 3 | . 1 1 1 . Terminals 2 | . 1 . 1 . Fabricators . | . . . . . Repair Stations . | . . . . . Recycling Units . | . . . . . Scanalyzers . | . . . . . Garrison Access . | . . . . . Total Hacks 6 | . 4 1 1 . Successful 5 | . 3 1 1 . Failed 1 | . 1 . . . Catastrophic . | . . . . . Database Lockouts . | . . . . . Manual 1 | . . . 1 . Terminals 5 | . 4 . 1 . Fabricators . | . . . . . Repair Stations . | . . . . . Recycling Units . | . . . . . Scanalyzers . | . . . . . Garrison Access . | . . . . . Terminal Hacks 5 | . 3 1 1 . Record 2 | . 2 . . . Open Door 1 | . . 1 . . Level Access Points 1 | . . . 1 . Branch Access Points 1 | . 1 . . . Fabricator Hacks . | . . . . . Repair Station Hacks . | . . . . . Recycling Unit Hacks . | . . . . . Scanalyzer . | . . . . . Garrison Access Hacks . | . . . . . Unauthorized Hacks . | . . . . . Terminals . | . . . . . Fabricators . | . . . . . Repair Stations . | . . . . . Recycling Units . | . . . . . Scanalyzers . | . . . . . Garrison Access . | . . . . . Data Cores Recovered . | . . . . . Used . | . . . . . Hacking Detections 1 | . 1 . . . Full Trace Events . | . . . . . Feedback Events . | . . . . . Feedback Blocked . | . . . . . Robot Schematics Acquired . | . . . . . Robots Built . | . . . . . Matter . | . . . . . Time . | . . . . . Total Robot Build Rating . | . . . . . Part Schematics Acquired . | . . . . . Parts Built . | . . . . . Matter . | . . . . . Time . | . . . . . Total Part Build Rating . | . . . . . Parts Repaired . | . . . . . Time . | . . . . . Parts Recycled . | . . . . . Recycled Matter . | . . . . . Retrieved Matter . | . . . . . Retrieved Components . | . . . . . Parts Scanalyzed . | . . . . . Part Schematics Acquired . | . . . . . Parts Damaged . | . . . . . Bothacking | -11 -10 -10 -9 -8 ------------ Run | Scr Mat Min Mat Mat Used RIF Installer . | . . . . . Robots Hacked . | . . . . . Non-combat . | . . . . . Combat . | . . . . . Robot Hacks Applied . | . . . . . Relay Couplers Released . | . . . . . Robots Rewired . | . . . . . Allies Hacked . | . . . . . Hacks Repelled . | . . . . . Allies | -11 -10 -10 -9 -8 -------- Run | Scr Mat Min Mat Mat Total Allies . | . . . . . Largest Group . | . . . . . Highest-Rated Group . | . . . . . Highest-Rated Ally . | . . . . . Total Orders 2 | . . 1 1 . EXPLORE 2 | . . 1 1 . Ally Attacks 56 | . . 51 5 . Total Damage 280 | . . 242 38 . Kills 8 | . . 7 1 . Allies Corrupted . | . . . . . Allies Melted . | . . . . . Intel | -11 -10 -10 -9 -8 ------- Run | Scr Mat Min Mat Mat Robot Analysis Total . | . . . . . Derelict Logs Recovered 2 | . . 2 . . Drone Launches 17 | . . 15 2 . Drone Recoveries 14 | . . 12 2 . Exploration | -11 -10 -10 -9 -8 ------------- Run | Scr Mat Min Mat Mat Turns Passed 712 | 13 69 278 192 160 Spaces Moved 907 | 25 135 370 203 174 Core 495 | 25 135 153 8 174 Treads . | . . . . . Legs . | . . . . . Wheels . | . . . . . Hover . | . . . . . Flight 412 | . . 217 195 . Fastest Speed 37 | 50 50 37 37 50 Average Speed 56 | 50 50 50 51 81 Slowest Speed 200 | 50 50 100 200 200 Overloaded Moves . | . . . . . Propulsion Burnouts . | . . . . . Robots Hopped 6 | . . 5 1 . Cave-ins Triggered 1 | . . . 1 . Exploration Rate (%) 40 | 3 40 98 22 38 Regions Visited 4 Branch Regions 1 Pre-discovered Areas 1 | . . 1 . . Known Exits Taken 3 | . 1 1 1 . Unknown Exits Taken 1 | 1 . . . . Scrap Searched 1 | . . 1 . . Spaces Dug 9 | . . . 9 . Terrain Destroyed 188 | . . . 154 34 Melee . | . . . . . Projectile . | . . . . . AOE 188 | . . . 154 34 Terrain Rammed . | . . . . . Walls Destroyed . | . . . . . Machines Disabled . | . . . . . Actions | -11 -10 -10 -9 -8 --------- Run | Scr Mat Min Mat Mat Total 1073 | 24 135 455 271 188 Wait 124 | . . 85 37 2 Move 890 | 24 134 359 199 174 Hop 6 | . . 5 1 . Pick Up 2 | . . . 2 . Fast Attach 8 | . 1 4 2 1 Attach 3 | . . . 1 2 Detach 4 | . . . 1 3 Swap . | . . . . . Drop 7 | . . 1 5 1 Fire 27 | . . . 22 5 Melee . | . . . . . Ram 1 | . . 1 . . Kick . | . . . . . Crush . | . . . . . Escape Stasis 1 | . . . 1 . Rewire . | . . . . . Trap . | . . . . . Miscellaneous . | . . . . . Route ------- -11/Scrapyard -10/Materials (discovered 3 exits: *Mat x2 / *Min) -10/Mines (discovered 2 exits: *Mat x2) -9/Materials (discovered 3 exits: *Mat x3) -8/Materials History --------- Turn | Location | Event 6 | -11/Scrapyard | Discovered new exit (range 15) 14 | -11/Scrapyard | Entered Materials 51 | -10/Materials | Discovered new exit (range 10) 54 | -10/Materials | Identified exit to Mines 72 | -10/Materials | Discovered new exit (range 12) 83 | -10/Materials | Entered Mines 130 | -10/Mines | Identified exit to Materials 136 | -10/Mines | Found the Drone Emporium 141 | -10/Mines | Found Prototype Device 141 | -10/Mines | Identified Thief Drone Bay 155 | -10/Mines | Discovered exit to Materials (range 16) 311 | -10/Mines | Build established: Mutant 318 | -10/Mines | Learned location of Storage (-8) 361 | -10/Mines | Entered Materials 361 | -9/Materials | Accompanied by 2 allies 361 | -9/Materials | Evolved 2 slots: Utility x2 379 | -9/Materials | Identified exit to Materials 526 | -9/Materials | Crushed by falling debris 553 | -9/Materials | Entered another Materials area 553 | -8/Materials | Evolved 2 slots: Utility x2 661 | -8/Materials | Core integrity fell below 50% 670 | -8/Materials | Core integrity fell below 20% 705 | -8/Materials | Garrison activated, responded to threat 713 | -8/Materials | Destroyed by L-31 Rogue with Katana Last Messages --------------- 00631_ Penetrated by Slug. 00636_ W-25 Informer sends out distress signal. 00637_ Dropped Imp. Ion Engine. 00637_ Penetrated by Slug. 00638_ ALERT: Hostiles spotted, dispatching reinforcements to Terminal M001. 00642_ Slug penetrates Wall. 00654_ K-01 Serf collects debris. 00663_ Processing Tank disabled. 00676_ K-01 Serf collects debris. 00677_ Destroyed Welding Torch. 00677_ ALERT: Construction progress impeded, dispatching reinforcements to local area. 00678_ S-10 Pest destroyed. 00679_ The unstable cave ceiling collapses. 00679_ K-01 Serf collects debris. 00683_ U-05 Engineer lays Concrete. 00704_ G-47 Trooper destroyed. 00705_ ALERT: Activating Garrison Access M001. 00713_ G-50 Soldier destroyed. Map ----- +----------------------------------------------------+ | ??????????????????# ! ! ??#! | | ??????????????????# ""??# | | ??????????????????#! """?# ! | | ??????????????????# """?# | | ??????????????????# """ # ! | | ??????????????????# "R = # ! | | ??????????????????# """ / ###### | | ??????????????????# ] #=%[ | | ??????????????????########### %% """ | | ?????????????? ########### """ | | ?????????????? """ | | ???????????????T | | ?????????????? # | | ??????????????? ###+###### "" | | ??????????????????# ! ?S"" | | ??????????????????# "" #?"" | | ??????????????????# ""S """ # #??### | | ??????????????????# "" """ # #????? | | ??????????????????# """ # #????? | | ??????????????????# # #????? | | ??????????????????? ] # #????? | | ????????????????????? ??# #????? | | ???############???????#/#???# #????? | | ???# ![ #??????## #### #????? | | ???# ![ #####??# #????? | | ???# ! @ !## % #????? | | ???# l gg%=g % #????? | | ?#"" ## # ####????? | | ?#"T =[[ #####?? #????????? | | ?#"" =[ #???? #????????? | | ?### =[ #???# """ """ #????????? | | ???# #???# """ """ #????????? | | ???# #???# """ """ #????????? | | ???############???# """ """ #????????? | | ??????????????????# #????????? | | ??????????????????#?? ! ??#????????? | | ??????????????????????###????????????? | | | | | | | | | | | | | | | | | | | | | | | | | | | +----------------------------------------------------+ Best States ------------- Heat Dissipation 31 Energy Generation 14 Energy Capacity 265 Matter Stores 300 Matter Capacity 300 Sight Range 18 Terrain Scan Density 60 Evasion (%) 62 Defensive Hacking 10 Item Schematics ----------------- None Robot Schematics ------------------ None Fabricated ------------ Nothing Alien Tech Used ----------------- None Achievements -------------- None Challenges ------------ None Game ------ Seed AbsorptionFocalTriangulator Manual? 0 Play Time 00:11:46 Cumulative 75.6 hours Start 2021.10.23 @ 21:59:05 End 2021.10.23 @ 22:08:44 Sessions 1 Manual Loads 0 Difficulty Rogue Special Mode None Game No. 107 Rogue 107 Adventurer 0 Explorer 0 Win Type - Total 0 Types 0/0/0/0/0/0/0/0/0 Lore% 38 Gallery% 55 Achievement% 37 Wizard Run 0 Options --------- ASCII 0 Keyboard 1 Movement Vi Keybinds 0 Fullscreen 1 Font 18/SmallcapsGlow Map View 76x50 Tactical HUD 1 Map Filters NONE Filters NONE Steam 1 RUN: ded9d714-001d-4052-8158-cd8aeeba2d79